bitfinex/quotes_SOLUSD_20251006
["timestamp","ask_amount","ask_price","bid_price","bid_amount"]
[1759779504331,3.02311588,235.65,235.64,29.72]
[1759779505045,7.26669746,235.65,235.64,29.72]
[1759779505250,7.96669746,235.65,235.64,29.72]
[1759779505753,7.26669746,235.65,235.64,29.72]
[1759779506527,7.96669746,235.65,235.58,132.17]
[1759779506859,3.02311588,235.62,235.59,29.72]
[1759779507022,3.02311588,235.6,235.59,29.72]
[1759779507226,4.24358158,235.65,235.59,30.39]
[1759779507429,3.02311588,235.62,235.6,0.67]
[1759779508344,4.94358158,235.65,235.6,0.67]
[1759779508345,3.02311588,235.61,235.6,0.67]
[1759779509058,3.72311588,235.61,235.6,29.72]
[1759779509231,14.59959109,235.61,235.6,29.72]
[1759779510349,10.87647521,235.6,235.52,33.06]
[1759779510567,3.02311588,235.53,235.52,33.06]
[1759779511443,3.02311588,235.53,235.52,62.78]
[1759779512249,7.26885952,235.53,235.52,62.78]
[1759779514856,7.96885952,235.53,235.52,62.78]
[1759779515238,7.26885952,235.53,235.52,62.78]
[1759779515751,7.96885952,235.53,235.52,62.78]
[1759779517757,7.26885952,235.53,235.52,62.78]
[1759779518078,7.97885952,235.53,235.52,62.78]
[1759779518259,18.85533473,235.53,235.52,33.06]
[1759779518438,18.85533473,235.53,235.52,62.78]
[1759779519448,10.87647521,235.52,235.43,0.1]
[1759779519651,3.02311588,235.44,235.43,0.81]
[1759779520359,7.27048251,235.44,235.43,0.81]
[1759779520666,7.27048251,235.44,235.43,30.53]
[1759779521059,20.8,235.54,235.43,30.53]
[1759779521248,3.02311588,235.51,235.44,0.71]
[1759779521453,3.02311588,235.52,235.46,20.8]
[1759779521657,3.02311588,235.52,235.47,30.43]
[1759779521842,3.02311588,235.52,235.44,20.8]
[1759779521843,3.02311588,235.52,235.48,30.43]
[1759779522041,3.02311588,235.52,235.49,0.71]
[1759779522382,7.26909416,235.52,235.5,0.71]
[1759779522547,7.26909416,235.52,235.51,29.72]
[1759779522881,7.26909416,235.52,235.43,0.1]
[1759779522882,10.87647521,235.51,235.43,0.81]
[1759779523042,10.87647521,235.49,235.44,29.72]
[1759779523247,3.02311588,235.45,235.44,29.72]
[1759779524156,7.27030211,235.45,235.44,29.72]
[1759779524357,7.98030211,235.45,235.44,29.72]
[1759779525970,18.85677732,235.45,235.44,29.72]
[1759779526273,21.8798932,235.45,235.44,29.72]
[1759779526651,10.87647521,235.44,235.43,0.1]
[1759779526855,16.92270697,235.44,235.43,1.34]
[1759779527052,17.63270697,235.44,235.43,1.34]
[1759779528973,31.67647521,235.42,235.41,0.1]
[1759779529176,34.69959109,235.42,235.41,0.1]
[1759779529474,35.36959109,235.42,235.41,0.1]
[1759779530153,35.36959109,235.42,235.41,4.98]
[1759779532172,35.36959109,235.42,235.41,0.1]
[1759779536272,35.36959109,235.42,235.41,1e-08]
[1759779536855,10.87647521,235.42,235.41,1e-08]
[1759779537054,31.67647521,235.42,235.41,0.68000001]
[1759779537271,34.69959109,235.42,235.41,0.68000001]
[1759779539061,31.67647521,235.42,235.41,0.68000001]
[1759779539261,34.69959109,235.42,235.41,0.68000001]
[1759779540669,34.69959109,235.42,235.41,1e-08]
[1759779542074,39.61731855,235.42,235.41,1e-08]
[1759779542275,18.81731855,235.42,235.41,1e-08]
[1759779543781,34.69959109,235.37,235.36,0.1]
[1759779545260,38.9482209,235.37,235.36,0.1]
[1759779548188,31.67647521,235.34,235.33,0.1]
[1759779548407,10.87647521,235.33,235.32,0.1]
[1759779548685,20.8,235.3,235.26,0.1]
[1759779548866,13.89959109,235.28,235.27,1e-08]
[1759779549283,14.56959109,235.28,235.27,1e-08]
[1759779549481,10.87647521,235.27,235.26,1e-08]
[1759779549673,14.56959109,235.27,235.26,1e-08]
[1759779549991,18.82002675,235.27,235.26,1e-08]
[1759779550175,18.15002675,235.27,235.26,1e-08]
[1759779550377,18.82002675,235.27,235.26,1e-08]
[1759779553167,15.12691087,235.27,235.26,1e-08]
[1759779553385,18.15002675,235.27,235.26,1e-08]
[1759779553901,18.82002675,235.27,235.26,1e-08]
[1759779555175,17.73939931,235.27,235.26,1e-08]
[1759779555993,17.73939931,235.27,235.26,29.74000001]
[1759779556366,17.73939931,235.27,235.26,1e-08]
[1759779557306,35.92691087,235.27,235.26,1e-08]
[1759779557602,37.86939931,235.27,235.26,1e-08]
[1759779557970,35.92691087,235.27,235.26,1e-08]
[1759779558200,37.86939931,235.27,235.26,0.70000001]
[1759779559207,17.06939931,235.27,235.26,0.70000001]
[1759779560307,17.06939931,235.27,235.26,30.46000001]
[1759779560504,17.06939931,235.27,235.26,29.76000001]
[1759779560889,17.06939931,235.27,235.26,30.46000001]
[1759779562700,15.12691087,235.27,235.26,30.46000001]
[1759779563082,17.06939931,235.27,235.26,30.46000001]
[1759779563705,4.24986911,235.31,235.26,30.46000001]
[1759779564001,10.87647521,235.3,235.27,0.7]
[1759779564801,4.25007437,235.29,235.27,0.7]
[1759779565102,4.25007437,235.29,235.28,0.7]
[1759779566193,12.81896365,235.3,235.28,0.7]
[1759779566194,15.12637875,235.3,235.28,0.7]
[1759779566703,10.87647521,235.3,235.28,0.7]
[1759779566909,15.12621176,235.31,235.28,0.7]
[1759779567204,12.81896365,235.33,235.28,0.7]
[1759779567402,10.87647521,235.33,235.28,0.7]
[1759779568115,12.81896365,235.33,235.28,0.7]
[1759779568278,1.94248844,235.32,235.29,0.7]
[1759779568475,1.94248844,235.3,235.27,0.7]
[1759779568722,12.81896365,235.29,235.28,29.76]
[1759779568911,17.06903802,235.29,235.28,29.76]
[1759779569283,17.06903802,235.29,235.28,30.46]
[1759779569781,15.12654958,235.29,235.28,30.46]
[1759779569981,17.06903802,235.29,235.28,30.46]
[1759779570197,15.12654958,235.29,235.28,29.76]
[1759779570394,17.06903802,235.29,235.28,29.76]
[1759779570589,17.06903802,235.29,235.26,0.70000001]
[1759779570805,12.81896365,235.27,235.26,1e-08]
[1759779571103,15.12691087,235.27,235.26,29.76000001]
[1759779571406,17.06939931,235.27,235.26,30.46000001]
[1759779571584,17.06939931,235.27,235.26,29.76000001]
[1759779572785,17.06939931,235.27,235.26,1e-08]
[1759779573006,17.06939931,235.27,235.26,29.76000001]
[1759779573714,17.06939931,235.27,235.26,30.46000001]
[1759779573934,10.87647521,235.28,235.26,30.46000001]
[1759779574234,12.81896365,235.28,235.26,30.46000001]
[1759779574603,12.81896365,235.28,235.27,0.7]
[1759779575320,17.06921866,235.28,235.27,0.7]
[1759779575617,15.12673022,235.28,235.27,30.46]
[1759779577026,17.06921866,235.28,235.27,29.76]
[1759779577203,17.06921866,235.28,235.26,1e-08]
[1759779577411,17.06921866,235.28,235.27,29.76]
[1759779578911,15.12673022,235.28,235.27,29.76]
[1759779579100,17.06921866,235.28,235.27,29.76]
[1759779579297,17.74921866,235.28,235.26,1e-08]
[1759779579497,15.12673022,235.28,235.26,1e-08]
[1759779579800,15.12673022,235.28,235.27,0.65]
[1759779580028,31.67647521,235.25,235.24,0.1]
[1759779580330,33.61896365,235.25,235.24,0.1]
[1759779580533,34.29896365,235.25,235.24,0.1]
[1759779580917,33.61896365,235.25,235.24,0.1]
[1759779581232,34.29896365,235.25,235.24,0.1]
[1759779581931,37.86976067,235.25,235.24,0.1]
[1759779588142,15.12727223,235.25,235.24,0.82]
[1759779588637,17.06976067,235.25,235.24,29.92]
[1759779591914,17.06976067,235.25,235.24,30.64]
[1759779592341,15.12727223,235.25,235.24,30.64]
[1759779592543,17.06976067,235.25,235.24,30.64]
[1759779592744,15.12727223,235.25,235.24,30.64]
[1759779592920,17.06976067,235.25,235.24,30.64]
[1759779593926,17.06976067,235.25,235.24,29.92]
[1759779594548,17.06976067,235.25,235.24,30.64]
[1759779594738,17.06976067,235.25,235.24,29.92]
[1759779594937,15.12727223,235.25,235.24,29.92]
[1759779595141,17.06976067,235.25,235.24,30.64]
[1759779596847,15.12727223,235.25,235.24,30.64]
[1759779597051,17.06976067,235.25,235.24,30.64]
[1759779597553,15.12727223,235.25,235.24,30.64]
[1759779597932,17.06976067,235.25,235.24,30.64]
[1759779598360,4.25058702,235.27,235.24,30.64]
[1759779598534,14.87667619,235.27,235.25,0.72]
[1759779598734,1.94248844,235.26,235.24,0.1]
[1759779598930,1.94248844,235.25,235.24,0.1]
[1759779599238,1.94248844,235.25,235.24,30.62]
[1759779600153,6.19328546,235.25,235.24,30.62]
[1759779600458,17.77976067,235.25,235.24,29.9]
[1759779600630,17.06976067,235.25,235.24,29.9]
[1759779601331,17.06976067,235.25,235.24,0.1]
[1759779601535,15.12727223,235.25,235.24,25.12]
[1759779601743,15.12727223,235.25,235.24,24.4]
[1759779602556,17.06976067,235.25,235.24,24.4]
[1759779603266,17.06976067,235.25,235.24,25.12]
[1759779603441,15.12727223,235.25,235.24,25.12]
[1759779603651,4.25079702,235.25,235.24,25.12]
[1759779604235,4.25079702,235.25,235.24,30.62]
[1759779607846,6.19328546,235.25,235.24,29.88]
[1759779608185,6.90328546,235.25,235.24,1e-08]
[1759779608332,20.8,235.23,235.17,0.1]
[1759779608538,10.87647521,235.22,235.17,0.1]
[1759779608768,12.81896365,235.18,235.17,0.1]
[1759779609851,17.0710259,235.18,235.17,0.1]
[1759779612449,15.12853746,235.18,235.17,0.1]
[1759779612653,17.0710259,235.18,235.17,0.1]
[1759779612960,15.12853746,235.18,235.17,29.88]
[1759779613264,17.0710259,235.18,235.17,29.88]
[1759779617154,18.16484109,235.18,235.17,29.88]
[1759779617455,15.12853746,235.18,235.17,30.6]
[1759779617759,18.16484109,235.18,235.17,30.6]
[1759779617957,18.16484109,235.18,235.17,0.1]
[1759779618267,18.86484109,235.18,235.17,0.1]
[1759779618472,18.16484109,235.18,235.17,29.88]
[1759779620257,18.16484109,235.18,235.17,0.1]
[1759779620559,18.16484109,235.18,235.11,29.8]
[1759779620560,20.8,235.15,235.11,29.8]
[1759779620857,13.91277884,235.12,235.11,30.48]
[1759779621158,13.91277884,235.12,235.11,29.8]
[1759779621458,18.16592616,235.12,235.11,29.8]
[1759779622045,10.87647521,235.11,235.09,0.68]
[1759779622262,3.03630363,235.11,235.1,29.8]
[1759779622566,3.03630363,235.11,235.1,30.48]
[1759779623137,10.87647521,235.1,235.02,0.1]
[1759779623369,3.03630363,235.1,235.03,29.8]
[1759779623736,10.87647521,235.08,235.04,30.48]
[1759779623937,3.03630363,235.07,235.05,30.5]
[1759779624346,3.03630363,235.08,235.06,30.5]
[1759779624552,3.03630363,235.08,235.07,0.68]
[1759779624746,3.03630363,235.08,235.06,29.82]
[1759779624941,3.03630363,235.08,235.06,30.5]
[1759779625142,3.03630363,235.08,235.06,29.82]
[1759779625343,10.87647521,235.11,235.07,0.68]
[1759779625543,13.91277884,235.11,235.07,0.68]
[1759779625850,4.2536517,235.1,235.07,0.68]
[1759779626556,7.28995533,235.1,235.08,0.68]
[1759779626758,13.91277884,235.09,235.05,0.68]
[1759779627067,10.87647521,235.09,235.06,30.5]
[1759779627368,4.25387102,235.08,235.07,29.82]
[1759779628154,7.29017465,235.08,235.07,29.82]
[1759779629167,28.80132741,235.08,235.07,29.82]
[1759779629549,10.87647521,235.07,235.04,0.68]
[1759779629751,3.03630363,235.06,235.05,29.82]
[1759779630061,13.91277884,235.06,235.05,29.82]
[1759779630258,10.87647521,235.05,235.02,0.78]
[1759779630465,3.03630363,235.04,235.03,29.82]
[1759779630773,13.91277884,235.05,235.03,30.5]
[1759779631272,7.29089859,235.04,235.02,0.1]
[1759779631478,15.13107017,235.04,235.03,29.82]
[1759779631776,7.29035561,235.07,235.03,30.5]
[1759779632066,10.87647521,235.06,235.04,0.68]
[1759779632489,10.87647521,235.1,235.05,0.68]
[1759779632699,28.80006084,235.1,235.05,0.68]
[1759779632990,25.76375721,235.1,235.06,0.68]
[1759779633280,4.25423296,235.06,235.03,0.68]
[1759779633449,4.25423296,235.06,235.04,30.5]
[1759779633858,10.87647521,235.05,235.02,0.78]
[1759779634179,13.91277884,235.05,235.03,29.82]
[1759779634550,13.91277884,235.05,235.02,0.78]
[1759779634747,13.91277884,235.05,235.03,29.82]
[1759779635151,15.13107017,235.04,235.03,29.82]
[1759779635351,7.99089859,235.04,235.02,0.1]
[1759779635559,3.73630363,235.03,235.02,0.1]
[1759779635752,3.03630363,235.03,235.02,0.1]
[1759779636171,4.25459496,235.04,235.02,0.1]
[1759779636480,3.03630363,235.03,235.02,0.1]
[1759779637186,3.03630363,235.03,235.0,0.1]
[1759779637187,35.93161328,235.01,235.0,1e-08]
[1759779637396,38.96791691,235.01,235.0,1e-08]
[1759779637672,39.68791691,235.01,235.0,1e-08]
[1759779637879,52.46393207,235.01,235.0,1e-08]
[1759779638376,54.68416905,235.01,235.0,1e-08]
[1759779640253,53.96416905,235.01,235.0,1e-08]
[1759779640453,41.18815389,235.01,235.0,1e-08]
[1759779641174,41.90815389,235.01,235.0,1e-08]
[1759779641384,41.18815389,235.01,235.0,1e-08]
[1759779643079,54.0939735,235.01,235.0,1e-08]
[1759779645883,54.8139735,235.01,235.0,1e-08]
[1759779646785,51.05766987,235.01,235.0,1e-08]
[1759779646969,51.05766987,235.01,235.0,0.66000001]
[1759779647168,20.38815389,235.01,235.0,0.66000001]
[1759779647382,4.25513807,235.01,235.0,0.66000001]
[1759779647589,3.03630363,235.02,235.0,0.66000001]
[1759779647772,4.25459542,235.04,235.0,11.64000001]
[1759779647972,7.29089905,235.04,235.01,0.66]
[1759779648268,4.25443272,235.05,235.01,0.66]
[1759779648475,3.03630363,235.07,235.01,0.66]
[1759779649492,3.03630363,235.05,235.01,0.66]
[1759779649987,3.03630363,235.05,235.02,29.96]
[1759779650287,3.03630363,235.05,235.03,0.68]
[1759779650688,3.03630363,235.06,235.03,0.68]
[1759779651576,4.25441395,235.05,235.04,0.68]
[1759779651776,4.25441395,235.05,235.02,29.96]
[1759779651777,17.92675246,235.05,235.02,29.94]
[1759779651974,3.03630363,235.03,235.02,29.94]
[1759779652582,3.03630363,235.03,235.02,30.62]
[1759779653102,14.89044883,235.05,235.02,30.62]
[1759779653278,7.29107961,235.03,235.02,29.94]
[1759779653674,4.25477598,235.03,235.02,29.94]
[1759779653878,4.25477598,235.03,235.02,30.62]
[1759779654575,3.03630363,235.06,235.02,30.62]
[1759779654781,2.21906185,235.1,235.03,0.68]
[1759779654984,13.91277884,235.11,235.03,0.68]
[1759779655590,3.03630363,235.1,235.03,0.68]
[1759779656082,25.763124,235.11,235.03,0.68]
[1759779656083,3.03630363,235.09,235.03,0.68]
[1759779656296,3.03630363,235.08,235.03,0.68]
[1759779656981,25.763124,235.11,235.03,0.68]
[1759779657181,3.03630363,235.08,235.03,0.68]
[1759779657603,3.03630363,235.09,235.03,0.68]
[1759779658283,3.03630363,235.08,235.03,0.68]
[1759779658813,25.763124,235.11,235.03,0.68]
[1759779659009,3.03630363,235.08,235.03,0.68]
[1759779659296,25.763124,235.11,235.03,0.68]
[1759779659488,3.03630363,235.08,235.03,0.68]
[1759779659691,4.25441395,235.05,235.04,29.94]
[1759779659893,7.29071758,235.05,235.0,0.68000001]
[1759779660092,3.03630363,235.03,235.01,30.62]
[1759779660297,14.89044883,235.05,235.01,30.62]
[1759779660804,3.03630363,235.03,235.01,30.62]
[1759779661004,4.25495702,235.02,235.01,0.68]
[1759779661177,7.29126065,235.02,235.0,1e-08]
[1759779661499,15.79143223,235.02,235.01,12.94]
[1759779661704,10.87647521,235.01,235.0,1e-08]
[1759779662087,4.25495702,235.02,235.0,1e-08]
[1759779663081,4.25477598,235.03,235.01,0.68]
[1759779663284,4.25477598,235.03,235.02,0.68]
[1759779664400,4.25477598,235.03,235.0,0.68000001]
[1759779664602,4.25477598,235.03,235.01,0.68]
[1759779664812,4.25477598,235.03,235.02,0.68]
[1759779664986,10.63603488,235.05,235.02,0.68]
[1759779665387,10.63603488,235.05,235.0,1e-08]
[1759779665710,13.67233851,235.05,235.0,1e-08]
[1759779665895,0.66,235.04,235.01,29.98]
[1759779666203,13.67233851,235.05,235.01,29.98]
[1759779666509,4.25477598,235.03,235.01,29.98]
[1759779666898,14.89171594,235.03,235.0,1e-08]
[1759779667090,14.89171594,235.03,235.01,29.96]
[1759779667408,4.25477598,235.03,235.01,30.64]
[1759779668181,4.25477598,235.03,235.01,29.96]
[1759779669090,4.25477598,235.03,235.0,1e-08]
[1759779669091,18.58801957,235.03,235.0,1e-08]
[1759779669414,3.03630363,235.02,235.01,29.94]
[1759779670287,7.29126065,235.02,235.01,29.94]
[1759779670482,4.25495702,235.02,235.01,29.94]
[1759779671689,14.89171594,235.03,235.01,29.94]
[1759779673700,10.87647521,235.02,235.01,29.94]
[1759779674108,13.91277884,235.02,235.0,1e-08]
[1759779674405,10.87647521,235.02,235.0,1e-08]
[1759779674596,10.87647521,235.02,235.01,0.68]
[1759779675295,10.87647521,235.02,235.0,1e-08]
[1759779675698,10.63541744,235.07,235.01,0.68]
[1759779675891,3.03630363,235.03,235.01,29.94]
[1759779676109,3.03630363,235.03,235.0,1e-08]
[1759779676110,10.87647521,235.02,235.0,1e-08]
[1759779676305,10.87647521,235.02,235.0,29.94000001]
[1759779676687,10.87647521,235.03,235.0,29.94000001]
[1759779677003,31.67647521,235.03,235.0,30.62000001]
[1759779677892,4.25495702,235.02,235.0,30.62000001]
[1759779678113,4.25495702,235.02,235.0,29.94000001]
[1759779678513,4.25495702,235.02,235.0,30.61000001]
[1759779679014,4.25495702,235.02,235.0,29.94000001]
[1759779680219,4.25495702,235.02,235.01,29.94]
[1759779685825,4.25495702,235.02,235.0,1e-08]
[1759779685826,6.92044009,235.02,235.0,1e-08]
[1759779686007,2.66548307,235.01,235.0,1e-08]
[1759779686199,1.94548307,235.01,235.0,1e-08]
[1759779686820,6.92062114,235.01,235.0,1e-08]
[1759779687121,4.25513807,235.01,235.0,1e-08]
[1759779688617,15.13161328,235.01,235.0,1e-08]
[1759779689001,17.07709635,235.01,235.0,1e-08]
[1759779689803,15.13161328,235.01,235.0,1e-08]
[1759779691207,4.25495462,235.03,235.0,0.67000001]
[1759779691406,4.25495462,235.03,235.01,0.67]
[1759779691607,15.13142983,235.03,235.02,0.67]
[1759779692523,15.13142983,235.03,235.0,1e-08]
[1759779692726,15.13142983,235.03,235.01,0.67]
[1759779693225,25.76836979,235.03,235.01,0.67]
[1759779694218,25.76836979,235.03,235.0,1e-08]
[1759779694422,12.82195828,235.02,235.01,29.88]
[1759779694620,10.87647521,235.02,235.01,29.88]
[1759779695209,15.13143223,235.02,235.01,29.88]
[1759779695411,4.25495702,235.02,235.01,29.88]
[1759779695717,15.85143223,235.02,235.0,1e-08]
[1759779695920,0.72,235.01,235.0,1e-08]
[1759779696933,15.13143223,235.02,235.0,1e-08]
[1759779697322,15.84143223,235.02,235.0,1e-08]
[1759779698926,15.84143223,235.02,234.88,37.90871356]
[1759779698927,78.6,234.95,234.91,20.8]
[1759779699242,78.6,234.94,234.91,20.8]
[1759779699548,78.6,234.94,234.82,33.16]
[1759779699743,78.6,234.93,234.82,33.16]
[1759779700057,89.47647521,234.92,234.83,29.88]
[1759779700933,89.47647521,234.92,234.86,20.8]
[1759779701122,10.87647521,234.9,234.83,29.88]
[1759779701320,10.87647521,234.9,234.82,33.16]
[1759779701524,10.87647521,234.9,234.83,29.9]
[1759779702746,10.87647521,234.9,234.82,33.16]
[1759779703042,14.90059176,234.89,234.83,29.9]
[1759779704248,4.25714709,234.9,234.83,29.9]
[1759779704537,1.87287542,234.87,234.76,0.69]
[1759779704741,10.87647521,234.89,234.77,29.9]
[1759779704924,1.87287542,234.86,234.78,28.6]
[1759779705130,4.25821836,234.84,234.79,28.6]
[1759779705342,14.90376426,234.84,234.8,29.94]
[1759779705546,1.87287542,234.81,234.64,12.78145836]
[1759779705744,12.74935063,234.78,234.65,30.0]
[1759779706132,10.87647521,234.78,234.65,30.0]
[1759779706722,1.87287542,234.8,234.68,20.8]
[1759779706937,10.87647521,234.82,234.68,20.8]
[1759779707138,10.87647521,234.82,234.69,0.69]
[1759779707322,10.87647521,234.84,234.73,20.8]
[1759779707743,15.13478661,234.84,234.73,20.8]
[1759779708143,15.13478661,234.84,234.73,21.52]
[1759779708643,4.25797138,234.86,234.74,30.02]
[1759779708844,10.87647521,234.85,234.74,30.02]
[1759779709030,10.87647521,234.88,234.74,30.02]
[1759779709234,10.87647521,234.88,234.77,20.8]
[1759779709435,10.87647521,234.89,234.77,20.8]
[1759779709630,15.13395318,234.89,234.77,20.8]
[1759779709854,15.13395318,234.89,234.83,1.87292191]
[1759779710028,15.13395318,234.89,234.84,31.91292191]
[1759779710430,15.13395318,234.89,234.85,1.87292191]
[1759779710758,15.13395318,234.89,234.84,30.04]
[1759779710942,10.87647521,234.84,234.79,1.87292191]
[1759779711149,2.55292191,234.84,234.78,1.87292191]
[1759779711354,2.55292191,234.84,234.79,18.82]
[1759779711652,2.55292191,234.84,234.74,0.72]
[1759779711849,2.55292191,234.84,234.77,1.87292191]
[1759779712053,1.87292191,234.84,234.77,1.87292191]
[1759779713540,15.58186059,234.87,234.78,30.06]
[1759779713541,10.87647521,234.82,234.78,30.06]
[1759779713841,10.87647521,234.84,234.8,1.87292191]
[1759779714349,10.87647521,234.84,234.82,1.87292191]
[1759779714752,10.87647521,234.84,234.83,30.08]
[1759779714962,12.74939712,234.84,234.83,30.08]
[1759779715433,4.25839969,234.83,234.77,1.87292191]
[1759779715634,12.74939712,234.8,234.72,0.72]
[1759779715952,12.74939712,234.8,234.73,23.89292191]
[1759779716256,12.74939712,234.8,234.63,33.16]
[1759779716257,10.87647521,234.8,234.71,0.72]
[1759779716460,10.87647521,234.8,234.74,1.87292191]
[1759779716940,10.87647521,234.8,234.75,30.08]
[1759779717149,10.87647521,234.8,234.76,30.08]
[1759779717332,10.87647521,234.8,234.74,1.87292191]
[1759779717333,10.87647521,234.8,234.77,30.08]
[1759779717537,4.25912517,234.79,234.77,30.08]
[1759779718357,10.87647521,234.78,234.77,30.08]
[1759779718657,13.42939712,234.78,234.75,30.08]
[1759779718968,10.87647521,234.78,234.75,30.08]
[1759779720841,10.87647521,234.78,234.75,30.8]
[1759779721039,0.2566,234.8,234.76,0.72]
[1759779721239,0.2566,234.8,234.79,1.87292191]
[1759779721439,0.2566,234.8,234.79,2.59292191]
[1759779722747,0.2566,234.8,234.79,0.72]
[1759779722947,0.2566,234.8,234.79,30.86]
[1759779724241,4.51554378,234.8,234.76,1.59292191]
[1759779725267,78.6,234.79,234.76,1.59292191]
[1759779725466,78.6,234.79,234.77,30.12]
[1759779726145,78.6,234.79,234.78,30.12]
[1759779726146,82.85912517,234.79,234.78,30.12]
[1759779726952,4.25912517,234.79,234.78,30.12]
[1759779727155,10.87647521,234.78,234.73,1.87292191]
[1759779727354,10.87647521,234.78,234.74,30.12]
[1759779727668,4.93912517,234.79,234.74,30.12]
[1759779728269,4.259488,234.77,234.74,30.12]
[1759779729158,4.259488,234.77,234.69,20.8]
[1759779729159,10.87647521,234.76,234.69,0.67]
[1759779729354,10.87647521,234.76,234.71,1.87292191]
[1759779729556,0.68,234.75,234.7,31.99292191]
[1759779730464,4.26003237,234.74,234.71,30.12]
[1759779730667,10.87647521,234.8,234.73,1.87292191]
[1759779730973,10.87647521,234.8,234.76,1.87292191]
[1759779731179,12.74939712,234.83,234.66,20.8]
[1759779731381,0.68,234.79,234.72,1.87292191]
[1759779731586,10.87647521,234.8,234.73,30.14]
[1759779731587,0.68,234.78,234.73,30.14]
[1759779731778,14.90400141,234.84,234.73,30.14]
[1759779731779,10.87647521,234.76,234.73,30.14]
[1759779732161,0.68,234.75,234.67,0.67]
[1759779732374,4.26021386,234.73,234.69,1.87292191]
[1759779732685,14.91074851,234.73,234.7,1.87292191]
[1759779733364,15.59074851,234.73,234.69,1.87292191]
[1759779733579,4.26021386,234.73,234.69,1.87292191]
[1759779733777,4.94021386,234.73,234.69,1.87292191]
[1759779734262,10.87647521,234.74,234.7,32.01292191]
[1759779734464,10.87647521,234.74,234.71,1.87292191]
[1759779734672,10.87647521,234.74,234.72,1.87292191]
[1759779735259,10.87647521,234.74,234.67,0.67]
[1759779735454,10.87647521,234.72,234.68,30.14]
[1759779735674,11.55647521,234.72,234.68,32.01292191]
[1759779736079,11.55647521,234.72,234.68,30.14]
[1759779736356,15.81698062,234.72,234.69,1.87292191]
[1759779737072,15.13698062,234.72,234.68,30.14]
[1759779737266,0.68,234.71,234.67,1.87541977]
[1759779737583,0.68,234.71,234.68,30.14]
[1759779737963,15.13698062,234.72,234.68,33.07035062]
[1759779738162,4.26021404,234.73,234.7,2.93035062]
[1759779738378,15.13650758,234.74,234.7,2.93035062]
[1759779738577,15.13650758,234.74,234.71,2.93035062]
[1759779738975,15.13650758,234.74,234.68,30.14]
[1759779739172,15.13650758,234.74,234.7,2.93035062]
[1759779739991,15.79650758,234.74,234.7,2.93035062]
[1759779740175,15.13650758,234.74,234.7,2.93035062]
[1759779740371,10.87647521,234.72,234.71,30.12]
[1759779740590,11.53647521,234.72,234.71,30.12]
[1759779740991,10.87647521,234.73,234.71,30.12]
[1759779741167,0.66,234.72,234.68,2.93035062]
[1759779741374,0.66,234.72,234.69,30.14]
[1759779741705,4.91989352,234.75,234.69,30.14]
[1759779741886,10.87647521,234.73,234.7,30.14]
[1759779742067,10.87647521,234.73,234.66,20.8]
[1759779742068,10.87647521,234.71,234.66,2.93035062]
[1759779742269,4.26093996,234.69,234.67,30.16]
[1759779742469,4.92093996,234.69,234.67,30.16]
[1759779743195,4.26093996,234.69,234.65,2.93035062]
[1759779743500,4.92093996,234.69,234.66,30.14]
[1759779744196,4.26093996,234.69,234.66,30.14]
[1759779744693,10.87647521,234.69,234.66,30.14]
[1759779745196,10.87647521,234.69,234.66,33.07035062]
[1759779745582,11.13307521,234.69,234.66,33.07035062]
[1759779747572,0.2566,234.69,234.67,2.93035062]
[1759779747799,0.2566,234.69,234.68,30.12]
[1759779748378,4.51753996,234.69,234.68,30.12]
[1759779748575,5.17753996,234.69,234.63,33.16]
[1759779748794,11.53647521,234.68,234.64,30.14]
[1759779748992,0.66,234.67,234.64,30.14]
[1759779749392,0.66,234.66,234.63,33.16]
[1759779749705,10.87647521,234.68,234.65,30.14]